bitfinex/quotes_SOLUSD_20241103
["timestamp","ask_amount","ask_price","bid_price","bid_amount"]
[1730659921302,0.3148901,159.03,159.0,13.62608594]
[1730659922397,0.3148901,159.03,159.01,37.40296994]
[1730659922746,0.3148901,159.03,159.02,14.00255594]
[1730659923017,0.3148901,159.12,159.02,14.00255594]
[1730659923018,0.3148901,159.12,159.04,0.37647]
[1730659923213,0.3148901,159.12,159.09,24.153354]
[1730659923391,0.3148901,159.12,159.11,23.902374]
[1730659925631,0.3148901,159.12,159.11,45.64196913]
[1730659925913,0.3148901,159.12,159.11,30.187274]
[1730659926309,0.3148901,159.12,159.11,23.902374]
[1730659926714,0.3148901,159.12,159.11,23.776884]
[1730659926911,28.33908523,159.12,159.06,21.73959513]
[1730659927092,28.33908523,159.12,159.05,43.74469513]
[1730659927511,6.5994901,159.12,159.07,21.73959513]
[1730659927713,6.5994901,159.12,159.03,28.02739513]
[1730659927714,21.73959513,159.09,159.03,28.02739513]
[1730659927923,21.73959513,159.08,159.03,6.2878]
[1730659928099,21.73959513,159.09,159.03,6.2878]
[1730659928423,15.6687,159.1,159.02,37.46079513]
[1730659928424,21.73959513,159.08,159.02,37.46079513]
[1730659929319,21.73959513,159.09,159.03,21.73959513]
[1730659929502,21.73959513,159.08,159.02,15.7212]
[1730659930515,21.73959513,159.08,159.02,22.0097]
[1730659930819,21.73959513,159.04,158.97,21.73959513]
[1730659931038,21.73959513,159.0,158.96,6.2908]
[1730659931399,28.02889513,159.0,158.95,22.0184]
[1730659931617,21.73959513,159.0,158.95,15.7272]
[1730659931822,34.27509513,159.02,158.95,43.75799513]
[1730659932018,28.02769513,159.04,158.97,21.73959513]
[1730659932514,28.02769513,159.04,158.95,43.75799513]
[1730659932515,21.73959513,159.02,158.95,43.75799513]
[1730659932716,21.73959513,159.0,158.95,15.7272]
[1730659933094,21.73959513,159.01,158.95,43.75799513]
[1730659933297,21.73959513,159.02,158.96,21.73959513]
[1730659933521,21.73959513,159.03,158.97,21.73959513]
[1730659933894,21.73959513,159.04,158.98,45.51647913]
[1730659934418,6.2873,159.05,158.98,23.776884]
[1730659934419,21.73959513,159.03,158.98,23.776884]
[1730659934609,28.02769513,159.03,158.98,23.776884]
[1730659935013,28.02769513,159.03,158.98,30.066884]
[1730659935405,21.73959513,158.99,158.91,21.73959513]
[1730659935611,21.73959513,158.96,158.89,21.73959513]
[1730659936019,21.73959513,158.96,158.9,21.73959513]
[1730659936407,21.73959513,158.99,158.92,21.73959513]
[1730659936730,21.73959513,158.97,158.92,6.2924]
[1730659937021,21.73959513,158.98,158.93,23.902374]
[1730659937319,43.69729513,159.01,158.95,23.902374]
[1730659937524,21.73959513,159.0,158.95,23.902374]
[1730659938903,21.73959513,158.99,158.95,30.193574]
[1730659939421,21.73959513,159.0,158.96,0.12549]
[1730659939603,6.2883,159.03,158.98,21.73959513]
[1730659939803,6.2883,159.03,158.99,23.776884]
[1730659940025,15.457,159.04,158.99,45.51647913]
[1730659940203,21.7447,159.04,158.99,23.776884]
[1730659940410,21.73959513,159.03,158.98,23.776884]
[1730659941129,21.73959513,159.01,158.96,6.2906]
[1730659941318,21.73959513,159.01,158.97,23.776884]
[1730659941627,6.2883,159.03,158.97,45.51647913]
[1730659941628,28.02789513,159.03,158.97,45.51647913]
[1730659942334,15.457,159.04,159.0,23.776884]
[1730659942520,21.7448,159.04,159.0,23.776884]
[1730659942710,6.2468,159.06,159.0,45.51647913]
[1730659942914,6.2468,159.06,159.01,21.73959513]
[1730659943432,12.5339,159.06,159.01,28.02839513]
[1730659943813,6.2865,159.07,159.02,45.64196913]
[1730659944126,37.19659513,159.08,159.02,45.64196913]
[1730659944430,43.48279513,159.08,159.02,45.64196913]
[1730659944629,21.73959513,159.07,159.02,23.776884]
[1730659944815,21.73959513,159.05,159.02,23.776884]
[1730659945332,21.73959513,159.06,159.02,23.776884]
[1730659946328,21.73959513,159.03,158.98,0.12549]
[1730659946626,21.73959513,159.02,158.97,0.12549]
[1730659946824,21.73959513,159.04,158.98,21.73959513]
[1730659947415,21.73959513,159.05,158.99,21.73959513]
[1730659947731,21.73959513,159.05,158.99,45.51647913]
[1730659948235,6.3865,159.07,158.99,23.776884]
[1730659948236,21.73959513,159.04,158.99,23.776884]
[1730659948531,21.73959513,159.02,158.99,23.776884]
[1730659949326,21.73959513,159.03,158.99,23.776884]
[1730659949527,28.02779513,159.03,158.99,23.776884]
[1730659950622,6.2882,159.03,158.99,23.776884]
[1730659951023,21.73959513,159.03,158.99,23.776884]
[1730659951934,21.73959513,159.02,158.99,23.776884]
[1730659952234,6.2884,159.03,158.99,23.776884]
[1730659953334,21.73959513,159.03,158.99,23.776884]
[1730659953539,21.73959513,159.03,158.96,28.03009513]
[1730659954121,21.73959513,159.02,158.96,43.75729513]
[1730659954321,21.73959513,159.03,158.96,43.75729513]
[1730659954729,21.73959513,159.03,158.97,23.776884]
[1730659954932,21.23959513,159.03,158.97,23.776884]
[1730659955236,21.73959513,158.99,158.94,0.12549]
[1730659955437,13.6170705,159.0,158.94,37.6449345]
[1730659955625,13.6170705,159.01,158.94,37.6449345]
[1730659955826,13.6170705,159.0,158.94,37.6449345]
[1730659956023,13.6170705,158.99,158.94,24.027864]
[1730659956515,13.6170705,159.0,158.94,24.027864]
[1730659956716,13.6170705,159.01,158.94,37.6449345]
[1730659957038,19.7336705,159.02,158.96,37.3939545]
[1730659957416,13.6170705,159.01,158.96,23.776884]
[1730659957931,26.0223705,159.02,158.96,23.776884]
[1730659958122,26.0223705,159.02,158.96,37.3939545]
[1730659958320,19.9057705,159.02,158.96,37.3939545]
[1730659958819,6.2887,159.02,158.97,19.9074705]
[1730659959140,19.7336705,159.06,159.0,13.6170705]
[1730659959436,19.7336705,159.06,159.0,23.776884]
[1730659960144,13.6170705,159.04,158.99,23.902374]
[1730659960312,19.9047705,159.04,158.99,30.191774]
[1730659960827,19.9047705,159.04,158.95,23.902374]
[1730659960828,13.6170705,159.0,158.95,23.902374]
[1730659961921,13.6170705,159.0,158.96,6.2908]
[1730659962540,13.6170705,158.99,158.95,30.193474]
[1730659963125,13.6170705,159.0,158.95,30.193474]
[1730659963622,13.6170705,158.99,158.95,30.193474]
[1730659964121,13.6170705,159.0,158.95,30.193474]
[1730659964324,13.6170705,159.01,158.95,59.5387445]
[1730659964641,13.6170705,159.02,158.95,59.5387445]
[1730659965424,13.6170705,159.03,158.97,23.902374]
[1730659965939,13.6170705,159.02,158.97,23.902374]
[1730659966827,13.6170705,159.02,158.98,6.29]
[1730659967518,13.6170705,159.03,158.98,6.29]
[1730659967831,13.6170705,159.03,158.99,23.776884]
[1730659968030,19.9043705,159.05,158.99,23.776884]
[1730659968418,13.6170705,159.04,158.99,23.776884]
[1730659969223,13.6170705,159.03,158.99,23.776884]
[1730659970028,13.6170705,159.02,158.97,6.2904]
[1730659970241,13.6170705,159.01,158.98,23.776884]
[1730659970436,13.6170705,159.02,158.98,23.776884]
[1730659971147,0.2545483,159.1,159.03,0.25098]
[1730659971441,0.2545483,159.1,159.05,37.3939545]
[1730659972242,0.2545483,159.1,159.05,43.6809545]
[1730659972441,0.2545483,159.1,159.06,13.6170705]
[1730659972621,0.2545483,159.1,159.05,59.3992545]
[1730659973258,0.2545483,159.1,159.05,45.782184]
[1730659973259,20.1573188,159.1,159.05,45.782184]
[1730659973421,13.6170705,159.09,159.05,15.7183]
[1730659973746,20.1573188,159.1,159.05,15.7183]
[1730659975825,6.5402483,159.1,159.05,22.0056]
[1730659977846,13.6170705,159.09,159.03,13.7425605]
[1730659978153,13.6170705,159.08,159.03,23.776884]
[1730659979145,13.6170705,159.08,159.03,30.064984]
[1730659979731,19.9030705,159.09,159.03,30.064984]
[1730659980344,19.9030705,159.09,159.03,43.6820545]
[1730659983025,13.6170705,159.07,159.02,13.6170705]
[1730659983230,13.6170705,159.08,159.02,13.6170705]
[1730659983430,13.6170705,159.07,159.01,35.6277705]
[1730659983737,19.9030705,159.09,159.03,13.6170705]
[1730659984135,13.6170705,159.08,159.02,13.6170705]
[1730659984329,19.9033705,159.08,159.03,6.2881]
[1730659984555,19.9033705,159.08,159.03,19.9051705]
[1730659984556,6.2863,159.08,159.03,19.9051705]
[1730659984848,6.5399483,159.1,159.06,13.6170705]
[1730659985060,0.2545483,159.1,159.07,13.6170705]
[1730659986524,0.2545483,159.1,159.07,19.9032705]
[1730659987934,0.2545483,159.1,159.07,6.2862]
[1730659988253,0.2545483,159.1,159.09,37.5194445]
[1730659988631,0.2545483,159.1,159.09,43.8051445]
[1730659991361,0.2545483,159.1,159.08,6.2859]
[1730659991524,0.2545483,159.1,159.08,22.0012]
[1730659991726,0.2545483,159.1,159.08,35.6182705]
[1730659993649,0.2545483,159.1,159.08,22.0012]
[1730659993852,0.2545483,159.1,159.08,35.6182705]
[1730659994055,0.2545483,159.1,159.09,37.5194445]
[1730659994932,0.2545483,159.1,159.09,37.7704245]
[1730659995434,0.2545483,159.1,159.09,44.0561245]
[1730659996654,0.3041061,159.18,159.09,44.0561245]
[1730659996655,0.3041061,159.18,159.1,24.153354]
[1730659996953,0.3041061,159.18,159.16,13.6170705]
[1730659997865,0.3041061,159.18,159.16,19.8998705]
[1730659998159,28.8719705,159.22,159.17,23.902374]
[1730659998331,28.8719705,159.22,159.16,19.8998705]
[1730659998332,21.5355,159.22,159.16,21.9902]
[1730659998540,13.6170705,159.19,159.14,23.776884]
[1730659998739,13.6170705,159.19,159.15,0.25098]
[1730659998965,35.1525705,159.22,159.17,23.776884]
[1730659999655,20.2001766,159.26,159.19,13.6170705]
[1730659999955,6.5831061,159.26,159.2,35.6019705]
[1730660000178,6.5831061,159.26,159.21,23.776884]
[1730660000333,6.5831061,159.26,159.21,37.3939545]
[1730660000956,6.5831061,159.26,159.21,43.6747545]
[1730660001140,0.3041061,159.26,159.22,0.25098]
[1730660001550,6.5831061,159.26,159.21,59.3772545]
[1730660002352,0.3041061,159.26,159.22,13.6170705]
[1730660002571,0.3041061,159.26,159.23,23.776884]
[1730660002736,0.3041061,159.26,159.21,21.9833]
[1730660002737,13.9211766,159.26,159.21,21.9833]
[1730660002938,13.6170705,159.25,159.2,23.902374]
[1730660003862,20.2003766,159.26,159.2,23.902374]
[1730660004763,20.2003766,159.26,159.2,43.8006445]
[1730660005639,0.3041061,159.26,159.21,0.12549]
[1730660005846,0.3041061,159.26,159.21,13.7425605]
[1730660006047,0.3041061,159.26,159.22,23.902374]
[1730660006366,13.9211766,159.26,159.22,23.902374]
[1730660006753,13.9211766,159.26,159.21,0.12549]
[1730660006754,20.2001766,159.26,159.21,23.776884]
[1730660007360,13.6170705,159.25,159.21,23.776884]
[1730660007767,19.8965705,159.25,159.21,23.776884]
[1730660008070,6.2795,159.25,159.21,23.776884]
[1730660008643,19.8965705,159.25,159.2,23.902374]
[1730660009242,20.2002766,159.26,159.2,37.5194445]
[1730660009945,20.2002766,159.26,159.2,43.8004445]
[1730660013045,20.2002766,159.26,159.2,59.5039445]
[1730660013863,0.3041061,159.26,159.22,13.7425605]
[1730660014066,13.9211766,159.26,159.23,23.776884]
[1730660014367,20.2002766,159.26,159.23,23.776884]
[1730660015153,13.6170705,159.25,159.21,6.2807]
[1730660015556,13.6170705,159.25,159.21,23.902374]
[1730660016148,6.5832061,159.26,159.21,23.902374]
[1730660016149,20.2002766,159.26,159.21,23.902374]
[1730660016769,13.6170705,159.25,159.21,23.902374]
[1730660018577,13.6170705,159.22,159.17,21.9887]
[1730660018774,13.6170705,159.2,159.15,13.6170705]
[1730660018968,13.6170705,159.18,159.14,15.7092]
[1730660019274,13.6717267,159.19,159.14,15.7092]
[1730660019456,13.6717267,159.19,159.14,29.3262705]
[1730660020157,13.6717267,159.19,159.15,23.776884]
[1730660020561,19.9535267,159.19,159.15,23.776884]
[1730660022053,19.4535267,159.19,159.15,23.776884]
[1730660022476,0.0546562,159.19,159.15,23.776884]
[1730660022851,13.6717267,159.19,159.15,23.776884]
[1730660023378,0.0546562,159.19,159.15,23.776884]
[1730660024453,13.1717267,159.2,159.15,23.776884]
[1730660024657,19.4534267,159.2,159.15,23.776884]
[1730660025167,13.6170705,159.23,159.18,13.6170705]
[1730660025890,6.2798,159.24,159.19,23.776884]
[1730660025891,13.6170705,159.24,159.19,23.776884]
[1730660026261,13.6170705,159.23,159.19,23.776884]
[1730660026962,13.6170705,159.23,159.17,13.6170705]
[1730660026963,13.6170705,159.23,159.18,45.764184]
[1730660027275,13.1170705,159.23,159.18,45.764184]
[1730660027665,13.6170705,159.21,159.18,39.482084]
[1730660027858,13.6170705,159.2,159.18,23.776884]
[1730660028763,13.6170705,159.2,159.16,6.40839]
[1730660028963,13.6170705,159.19,159.16,6.2829]
[1730660029487,13.6170705,159.19,159.15,15.7081]
[1730660029783,13.6170705,159.17,159.12,21.9956]
[1730660029963,13.6170705,159.18,159.12,35.6126705]
[1730660030991,19.8992705,159.18,159.13,23.776884]
[1730660031665,13.6170705,159.2,159.14,13.6170705]
[1730660032175,13.6170705,159.19,159.13,37.3939545]
[1730660032383,13.6170705,159.2,159.14,13.6170705]
[1730660032692,19.8987705,159.2,159.14,19.9004705]
[1730660034878,19.8987705,159.2,159.15,23.776884]
[1730660036394,13.6170705,159.19,159.15,23.776884]
[1730660036774,13.6170705,159.19,159.15,30.060084]
[1730660037496,13.6170705,159.2,159.15,45.768484]
[1730660037720,13.6170705,159.19,159.15,45.768484]
[1730660037903,13.6170705,159.19,159.14,6.2836]
[1730660038196,13.6170705,159.18,159.12,21.9952]
[1730660038379,13.6170705,159.18,159.12,35.6122705]
[1730660038578,13.6170705,159.19,159.12,35.6122705]
[1730660038902,13.6170705,159.17,159.12,21.9952]
[1730660039981,13.6170705,159.17,159.12,15.7111]
[1730660041110,13.6170705,159.17,159.12,21.9956]
[1730660041284,19.8993705,159.18,159.12,21.9956]
[1730660042405,15.8015,159.22,159.12,21.9956]
[1730660042406,13.6170705,159.17,159.12,21.9956]
[1730660042592,13.6170705,159.18,159.12,21.9956]
[1730660042999,13.6170705,159.23,159.16,13.6170705]
[1730660043321,21.49975193,159.26,159.19,8.68535193]
[1730660043481,31.33795193,159.25,159.19,8.68535193]
[1730660043801,31.33795193,159.25,159.17,0.25098]
[1730660043802,8.68535193,159.24,159.17,0.25098]
[1730660043988,22.6526,159.25,159.17,0.25098]
[1730660044200,8.68535193,159.24,159.17,0.25098]
[1730660044908,8.68535193,159.21,159.17,15.7057]
[1730660045237,8.68535193,159.22,159.17,21.9882]
[1730660045416,13.57699422,159.22,159.17,21.9882]
[1730660045792,13.57699422,159.23,159.17,21.9882]
[1730660046201,19.85709422,159.24,159.18,0.12549]
[1730660047007,13.57699422,159.23,159.17,21.9882]
[1730660047189,13.57699422,159.22,159.17,21.9882]
[1730660047387,19.85759422,159.22,159.17,15.7057]
[1730660047591,13.57699422,159.2,159.14,13.57699422]
[1730660048702,13.57699422,159.17,159.13,15.7097]
[1730660050196,13.57699422,159.15,159.09,35.57569422]
[1730660050402,13.57699422,159.14,159.1,2.24240165]
[1730660050706,13.57699422,159.14,159.09,15.7134]
[1730660050911,13.57699422,159.14,159.09,21.9991]
[1730660051406,13.57699422,159.13,159.09,15.7134]
[1730660052386,13.57699422,159.13,159.08,6.2859]
[1730660053719,19.86109422,159.14,159.08,35.57819422]
[1730660054010,13.57699422,159.15,159.09,13.57699422]
[1730660054190,13.57699422,159.15,159.08,22.0012]
[1730660054191,6.283,159.16,159.1,13.57699422]
[1730660055016,19.85999422,159.16,159.1,19.86199422]
[1730660055808,13.57699422,159.15,159.1,6.285]
[1730660056191,19.85999422,159.16,159.1,13.57699422]
[1730660056709,36.37049422,159.17,159.11,13.57699422]
[1730660057208,13.57699422,159.16,159.09,13.95346422]
[1730660057408,13.57699422,159.16,159.1,13.57699422]
[1730660057996,36.27039422,159.23,159.15,13.70248422]
[1730660058195,13.57699422,159.22,159.16,13.57699422]
[1730660058700,13.57699422,159.21,159.15,13.70248422]
[1730660059087,13.57699422,159.21,159.16,6.2829]
[1730660059290,6.2809,159.22,159.16,35.56729422]
[1730660061110,6.2809,159.22,159.17,19.85939422]
[1730660061589,42.55059422,159.23,159.17,35.56579422]
[1730660061992,28.9736,159.23,159.17,35.56579422]
[1730660063201,42.55059422,159.23,159.17,35.56579422]
[1730660063718,13.57699422,159.21,159.16,6.2829]
[1730660064011,13.57699422,159.21,159.15,19.86029422]
[1730660064215,13.57699422,159.22,159.15,19.86029422]
[1730660064694,13.57699422,159.22,159.16,13.57699422]
[1730660064892,42.55059422,159.23,159.17,13.57699422]
[1730660065228,42.55059422,159.23,159.17,19.85929422]
[1730660065595,28.9736,159.23,159.17,35.56569422]
[1730660067001,42.55059422,159.23,159.17,35.56569422]
[1730660068106,42.55059422,159.23,159.17,29.28339422]
[1730660069327,37.66149835,159.23,159.17,8.68789835]
[1730660070407,37.66149835,159.23,159.17,14.97009835]
[1730660071516,37.66149835,159.23,159.16,24.39449835]
[1730660072519,37.66149835,159.23,159.16,30.67739835]
[1730660073232,8.68789835,159.22,159.16,30.67739835]
[1730660073922,14.96859835,159.22,159.16,30.67739835]
[1730660078026,6.2807,159.22,159.16,30.67739835]
[1730660080721,14.96859835,159.22,159.16,30.67739835]
[1730660081832,14.96859835,159.22,159.16,15.7066]
[1730660081833,8.68789835,159.21,159.16,15.7066]
[1730660082129,8.68789835,159.2,159.16,15.7066]
[1730660082314,8.68789835,159.21,159.16,15.7066]
[1730660083121,16.21338664,159.21,159.16,15.7066]
[1730660084333,9.93208664,159.2,159.14,9.93208664]
[1730660084532,9.93208664,159.2,159.14,16.21568664]
[1730660085034,9.93208664,159.19,159.14,6.2836]
[1730660085431,9.93208664,159.18,159.13,15.7101]
[1730660085616,9.93208664,159.18,159.13,21.9942]
[1730660086434,9.43208664,159.18,159.13,21.9942]
[1730660086920,15.71448664,159.18,159.13,21.9942]
[1730660087421,6.2824,159.18,159.13,31.92628664]
[1730660088338,9.93208664,159.2,159.13,31.92628664]
[1730660089126,9.93208664,159.2,159.14,9.93208664]
[1730660089734,6.2818,159.19,159.14,9.93208664]
[1730660092639,6.2806,159.22,159.17,9.93208664]
[1730660093924,16.21268664,159.22,159.16,9.93208664]
[1730660095132,16.21268664,159.22,159.14,15.7094]
[1730660095133,9.93208664,159.21,159.15,6.2832]
[1730660096837,6.2814,159.2,159.15,9.93208664]
[1730660097821,6.2814,159.2,159.15,16.21528664]
[1730660099744,6.2809,159.22,159.17,9.93208664]
[1730660100522,9.93208664,159.19,159.15,15.7084]
[1730660101118,16.21308664,159.21,159.15,25.64048664]
[1730660101721,16.21308664,159.21,159.09,25.64638664]
[1730660101722,9.93208664,159.16,159.09,25.64638664]
[1730660102131,9.93208664,159.16,159.1,9.93208664]
[1730660102440,9.93208664,159.18,159.12,9.93208664]
[1730660103121,9.93208664,159.19,159.12,9.93208664]
[1730660103327,9.93208664,159.18,159.12,9.93208664]
[1730660103952,16.21428664,159.18,159.12,31.92798664]
[1730660105621,6.2822,159.18,159.13,9.93208664]
[1730660106027,16.21428664,159.18,159.12,9.93208664]
[1730660106653,9.93208664,159.17,159.12,9.93208664]
[1730660107538,9.93208664,159.17,159.12,16.21628664]
[1730660108231,16.21428664,159.18,159.12,16.21628664]
[1730660108733,16.21682168,159.18,159.12,16.21882168]
[1730660109334,16.21682168,159.18,159.12,15.71882168]
[1730660110355,16.21682168,159.18,159.13,9.93462168]
[1730660110747,16.21610473,159.18,159.13,9.93390473]
[1730660111661,16.21610473,159.18,159.13,16.21800473]
[1730660112453,16.21610473,159.18,159.13,6.2841]
[1730660115457,9.93390473,159.14,159.09,16.21960473]
[1730660115660,9.93390473,159.13,159.09,6.2857]
[1730660115873,9.93390473,159.13,159.09,22.0]
[1730660116156,9.93390473,159.1,159.05,0.1]
[1730660116363,9.93390473,159.09,159.04,31.4385]
[1730660116539,9.93390473,159.12,159.06,9.93390473]
[1730660116950,16.6075,159.13,159.08,9.93390473]
[1730660117134,9.93390473,159.12,159.06,9.93390473]
[1730660117333,26.54140473,159.13,159.07,9.93390473]
[1730660117857,16.21840473,159.12,159.07,6.2864]
[1730660118349,16.6075,159.13,159.08,9.93390473]
[1730660118733,16.6075,159.13,159.09,9.93390473]
[1730660118929,16.6075,159.13,159.1,9.93390473]
[1730660119143,16.6075,159.13,159.09,9.93390473]
[1730660120347,22.8917,159.13,159.08,9.93390473]
[1730660120547,32.82560473,159.13,159.08,9.93390473]
[1730660120750,9.93390473,159.12,159.07,15.7163]
[1730660121341,22.8917,159.13,159.08,9.93390473]
[1730660121547,22.8917,159.13,159.09,9.93390473]
[1730660121749,16.6075,159.13,159.09,9.93390473]
[1730660122256,6.2838,159.14,159.09,9.93390473]
[1730660122449,6.2838,159.14,159.1,9.93390473]
[1730660122647,16.21770473,159.14,159.09,9.93390473]
[1730660122869,16.21770473,159.14,159.08,25.64920473]
[1730660123660,16.21770473,159.14,159.09,9.93390473]
[1730660123967,6.2838,159.14,159.09,9.93390473]
[1730660124852,6.2838,159.14,159.09,16.21930473]
[1730660125057,16.21720473,159.16,159.1,9.93390473]
[1730660125245,6.2833,159.16,159.11,9.93390473]
[1730660125963,16.21720473,159.16,159.11,9.93390473]
[1730660126347,16.21720473,159.16,159.1,9.93390473]
[1730660126953,16.21720473,159.16,159.11,16.21880473]
[1730660128058,9.93390473,159.15,159.09,9.93390473]
[1730660128374,9.93390473,159.14,159.08,9.93390473]
[1730660128871,9.93390473,159.15,159.09,9.93390473]
[1730660129570,16.21750473,159.15,159.1,6.2853]
[1730660130068,6.2836,159.15,159.1,16.21920473]
[1730660130446,9.93390473,159.13,159.07,9.93390473]
[1730660130848,0.1,159.06,158.99,0.3099733]
[1730660131069,9.93390473,159.01,158.99,0.3099733]
[1730660131251,24.002374,159.01,158.99,0.3099733]
[1730660131568,120.542654,159.0,158.99,0.3099733]
[1730660131773,127.166527,159.0,158.99,0.3099733]
[1730660131974,0.22549,158.96,158.91,0.3099733]
[1730660132149,9.93390473,158.93,158.91,0.3099733]
[1730660132343,23.876884,158.97,158.91,16.53667803]
[1730660132576,22.7135,159.02,158.96,9.93390473]
[1730660132873,6.51279,159.05,158.92,0.22549]
[1730660133062,64.12010373,159.06,159.0,9.93390473]
[1730660133262,64.12010373,159.06,158.94,39.73561892]
[1730660133263,9.93390473,159.05,158.99,9.93390473]
[1730660133462,15.54753022,159.05,158.99,15.54753022]
[1730660133651,15.54753022,159.05,158.95,0.12549]
[1730660133652,15.54753022,159.04,158.98,21.83753022]
[1730660133850,15.54753022,159.05,158.99,15.54753022]
[1730660134149,15.54753022,159.05,158.98,6.29]
[1730660134150,38.26103022,159.06,159.0,15.54753022]
[1730660135283,15.54753022,159.05,158.99,15.54753022]
[1730660135660,15.54753022,159.05,159.0,6.2893]
[1730660136463,38.26103022,159.06,159.0,21.83683022]
[1730660137082,22.7135,159.06,159.01,15.54753022]
[1730660138074,38.26103022,159.06,159.0,37.56003022]
[1730660138281,38.26103022,159.06,159.0,22.0125]
[1730660138282,15.54753022,159.05,159.0,22.0125]
[1730660138454,22.7135,159.06,159.0,15.7232]
[1730660138455,15.54753022,159.04,159.0,15.7232]
[1730660138654,29.0007,159.06,158.97,21.83773022]
[1730660138655,15.54753022,159.03,158.97,21.83773022]
[1730660139157,15.54753022,159.04,158.98,15.54753022]
[1730660139676,15.54753022,159.03,158.97,37.56393022]
[1730660139877,15.54753022,159.04,158.98,15.54753022]
[1730660140064,15.54753022,159.05,159.0,6.2893]
[1730660140450,15.54753022,159.07,159.01,15.54753022]
[1730660140757,15.54753022,159.06,159.0,37.56003022]
[1730660147186,15.54753022,159.05,158.99,15.54753022]
[1730660147560,15.54753022,159.02,158.96,69.01973022]
[1730660147894,15.54753022,159.0,158.96,22.018]
[1730660148060,15.54753022,159.02,158.96,37.56553022]
[1730660148261,15.54753022,159.03,158.97,15.54753022]
[1730660148981,15.54753022,159.02,158.96,37.56553022]
[1730660152077,15.54753022,159.02,158.97,15.54753022]
[1730660153081,15.54753022,159.02,158.98,22.0152]
[1730660153788,15.54753022,159.03,158.98,22.0152]
[1730660154081,7.37941668,159.06,158.99,15.54753022]
[1730660154082,15.54753022,159.05,158.99,15.54753022]
[1730660154289,93.0465,159.1,158.99,15.54753022]
[1730660154290,15.54753022,159.07,159.01,15.54753022]
[1730660154477,15.54753022,159.07,158.99,0.12549]
[1730660154478,15.54753022,159.08,159.02,15.54753022]
[1730660154670,15.54753022,159.07,159.01,15.54753022]
[1730660155077,15.54753022,159.06,159.01,15.54753022]
[1730660155275,9.9489958,159.06,159.02,22.0097]
[1730660156269,9.94904937,159.06,159.02,22.0097]
[1730660156890,9.94904937,159.07,159.02,22.0097]
[1730660157090,9.94904937,159.07,159.02,31.95874937]
[1730660158273,9.94904937,159.08,159.02,31.95874937]
[1730660160470,9.94904937,159.09,159.03,9.94904937]
[1730660160788,9.94904937,159.04,158.99,15.7239]
[1730660160965,9.94904937,159.02,158.99,15.7239]
[1730660161171,43.902374,159.05,158.96,15.727]
[1730660161366,43.902374,159.05,158.93,16.2446]
[1730660161367,9.94904937,158.97,158.92,6.2924]
[1730660161580,9.94904937,158.96,158.92,6.2924]
[1730660161893,9.94904937,158.96,158.93,15.73]
[1730660162096,9.94904937,158.97,158.93,15.73]
[1730660162270,9.94904937,159.0,158.94,9.94904937]
[1730660162469,9.94904937,158.99,158.93,25.67904937]
[1730660163297,9.94904937,158.98,158.93,15.73]
[1730660163687,9.94904937,158.98,158.93,22.022]
[1730660163990,9.94904937,158.99,158.93,31.97104937]
[1730660164691,9.94904937,159.05,158.98,9.94904937]
[1730660164889,9.94904937,159.04,158.99,9.94904937]
[1730660165078,9.94904937,159.04,158.94,40.17266748]
[1730660165079,0.22549,159.07,158.94,0.37647]
[1730660165280,0.22549,159.07,158.94,0.12549]
[1730660165592,0.22549,159.05,158.93,84.9426]
[1730660166296,15.55806984,159.0,158.94,15.55806984]
[1730660166598,15.55582559,159.01,158.95,31.28402559]
[1730660167487,15.55582559,159.01,158.95,37.57522559]
[1730660168378,6.2884,159.03,158.96,15.55582559]
[1730660168379,15.55582559,159.02,158.96,15.55582559]
[1730660169996,15.55582559,159.04,158.98,15.55582559]
[1730660170972,15.55582559,159.04,158.99,6.2897]
[1730660171198,15.55582559,159.03,158.99,6.2897]
[1730660171978,15.55582559,159.03,158.98,15.7246]
[1730660172306,15.55582559,159.03,158.98,22.0146]
[1730660172908,15.55582559,158.99,158.95,22.0193]
[1730660173077,15.55582559,158.97,158.95,22.0193]
[1730660173383,15.55582559,158.98,158.95,22.0193]
[1730660173588,15.55582559,158.96,158.92,6.2924]
[1730660173812,15.55582559,158.94,158.92,6.2924]
[1730660173982,15.55582559,158.94,158.91,16.0414733]
[1730660174183,15.55582559,158.92,158.91,0.3099733]
[1730660174803,15.55582559,158.93,158.91,0.3099733]
[1730660175590,15.55582559,158.92,158.91,0.3099733]
[1730660176005,46.11419959,158.92,158.91,0.3099733]
[1730660176189,22.21182559,158.92,158.91,0.3099733]
[1730660176387,15.55582559,158.92,158.91,0.3099733]
[1730660177209,21.84822559,158.92,158.91,0.3099733]
[1730660177505,15.55582559,158.92,158.91,0.3099733]
[1730660177699,15.55582559,158.93,158.91,0.3099733]